bitfinex-derivatives/quotes_ETHF0:USTF0_20241231
["timestamp","ask_amount","ask_price","bid_price","bid_amount"]
[1735678047711,0.4353,3351.6,3351.5,0.29886]
[1735678050418,3.2078,3352.0,3351.9,0.29883]
[1735678050419,3.50662,3352.0,3351.9,0.29883]
[1735678051116,3.50662,3352.0,3351.8,0.29883]
[1735678051117,0.29884,3351.9,3351.8,0.29883]
[1735678051323,0.29886,3351.6,3351.5,0.29885]
[1735678051619,3.2078,3352.0,3351.6,0.29884]
[1735678051620,0.29885,3351.7,3351.6,0.29884]
[1735678052515,0.29886,3351.6,3351.5,0.29885]
[1735678054536,0.29888,3351.3,3351.2,0.74368]
[1735678054718,0.2989,3351.1,3351.0,0.2989]
[1735678055020,3.6579,3351.2,3350.4,3.2078]
[1735678055225,0.29892,3350.9,3350.8,0.29891]
[1735678055518,0.9052,3351.0,3350.4,3.2078]
[1735678055723,1.20411,3351.0,3350.9,0.29891]
[1735678055922,0.9052,3351.0,3350.9,0.29891]
[1735678056123,1.20411,3351.0,3350.9,0.29891]
[1735678056327,0.4524,3351.0,3350.9,0.29891]
[1735678058424,0.75131,3351.0,3350.9,0.29891]
[1735678059418,0.4524,3351.0,3350.9,0.29891]
[1735678060422,3.2078,3351.6,3350.9,1.80419355]
[1735678060724,3.2078,3351.6,3351.5,0.29886]
[1735678061024,2.32025181,3351.7,3351.6,0.29885]
[1735678061431,2.32025181,3351.7,3351.6,0.72685]
[1735678061816,0.29883,3351.9,3351.8,0.29883]
[1735678063527,3.93742,3352.0,3351.9,0.29883]
[1735678065425,0.29883,3351.9,3351.8,0.29883]
[1735678065625,3.93742,3352.0,3351.9,0.29883]
[1735678068523,3.6386,3352.0,3351.4,0.4447]
[1735678068729,3.2078,3351.5,3350.7,6.63287129]
[1735678069029,3.2078,3351.1,3351.0,0.29891]
[1735678069539,0.29891,3351.0,3350.9,0.29891]
[1735678069731,3.5067,3351.1,3351.0,0.29891]
[1735678070835,0.29893,3350.8,3350.7,0.29893]
[1735678073327,0.29892,3350.9,3350.8,0.29892]
[1735678073730,3.2078,3351.1,3350.5,0.4379]
[1735678073931,3.5067,3351.1,3351.0,0.29891]
[1735678075337,0.29889,3351.3,3351.2,0.29888]
[1735678077338,0.8499,3351.4,3350.6,0.74736]
[1735678077549,0.29892,3351.0,3350.9,0.29891]
[1735678077843,0.29894,3350.8,3350.7,0.29892]
[1735678078740,3.2078,3351.1,3350.5,3.2078]
[1735678079137,0.29894,3350.7,3350.6,0.29893]
[1735678080243,3.2078,3350.7,3350.1,4.66354129]
[1735678080443,0.29898,3350.2,3350.1,4.66354129]
[1735678080636,0.29898,3350.2,3350.1,4.96253129]
[1735678080942,3.2078,3350.3,3350.1,4.66354129]
[1735678081137,1.67435,3350.6,3350.5,0.29895]
[1735678081343,0.4597,3350.6,3350.5,0.29895]
[1735678082642,0.29896,3350.5,3350.4,0.29895]
[1735678084944,0.75864,3350.6,3350.5,0.29895]
[1735678086345,0.4597,3350.6,3350.5,0.29895]
[1735678086651,2.32025181,3351.0,3350.9,0.29891]
[1735678086851,2.32025181,3351.0,3350.9,1.52691]
[1735678087047,2.32025181,3351.0,3350.9,4.73471]
[1735678088446,0.29886,3351.6,3351.5,0.29886]
[1735678089247,2.78285181,3351.7,3351.0,0.74726]
[1735678089449,2.78285181,3351.7,3351.4,0.29886]
[1735678089450,0.29887,3351.5,3351.4,0.29886]
[1735678090243,0.4626,3351.7,3351.0,0.74726]
[1735678090454,0.29886,3351.6,3351.5,0.29885]
[1735678091150,3.08170181,3351.7,3351.6,0.29885]
[1735678091352,2.32025181,3351.7,3351.6,0.29885]
[1735678092246,2.32025181,3351.8,3351.7,0.29884]
[1735678093754,0.29883,3351.9,3351.4,0.74717]
[1735678093946,0.29883,3351.9,3351.8,0.29883]
[1735678094441,0.29886,3351.7,3351.6,0.29884]
[1735678095651,0.4324,3351.8,3351.7,0.29884]
[1735678095852,5.01199355,3352.0,3351.3,3.6664]
[1735678096046,3.2078,3351.6,3351.1,4.66354129]
[1735678096349,3.2078,3351.6,3351.2,0.29888]
[1735678096350,0.29889,3351.3,3351.2,0.29888]
[1735678096545,0.29889,3351.2,3351.1,4.66354129]
[1735678096754,3.50669,3351.2,3351.1,4.66354129]
[1735678096946,0.29891,3350.9,3350.8,4.96246129]
[1735678097451,0.29891,3350.9,3350.8,4.66354129]
[1735678098553,0.29894,3350.7,3350.6,0.29894]
[1735678099047,0.29894,3350.7,3350.4,0.29896]
[1735678099251,0.29894,3350.7,3350.6,0.29894]
[1735678099647,3.6556,3350.8,3350.1,4.66354129]
[1735678100155,0.29896,3350.5,3350.4,0.29895]
[1735678100950,0.29895,3350.5,3350.2,0.29898]
[1735678101157,0.29895,3350.5,3350.4,0.29896]
[1735678102057,0.29895,3350.6,3350.5,0.29895]
[1735678102252,3.95453,3350.8,3350.7,0.29893]
[1735678102555,2.32025181,3351.0,3350.9,0.29891]
[1735678103657,0.72079,3351.2,3351.1,0.2989]
[1735678104163,5.94925181,3351.5,3350.8,1.80419355]
[1735678104461,6.24812181,3351.5,3351.4,0.29887]
[1735678104853,2.74215181,3351.7,3351.1,1.80419355]
[1735678105156,2.74215181,3351.7,3351.6,0.29885]
[1735678105453,3.04099181,3351.7,3351.6,0.29885]
[1735678106363,0.72074,3351.7,3351.6,0.29885]
[1735678106755,0.4219,3351.7,3351.6,0.29885]
[1735678107160,0.29883,3351.9,3351.3,0.74721]
[1735678107460,5.82687181,3352.0,3351.9,0.29883]
[1735678107861,5.52805181,3352.0,3351.4,2.23229355]
[1735678108055,0.29883,3351.9,3351.8,0.29883]
[1735678109759,3.2078,3352.0,3351.4,2.23229355]
[1735678109966,0.29885,3351.7,3351.6,0.29885]
[1735678110162,0.29884,3351.8,3351.7,0.29883]
[1735678110466,3.2078,3352.0,3351.4,0.4281]
[1735678110661,0.29885,3351.7,3351.6,0.29884]
[1735678111566,0.29885,3351.7,3351.4,0.4281]
[1735678111567,0.29887,3351.5,3351.4,0.29886]
[1735678111759,3.2078,3352.0,3351.3,1.227]
[1735678111965,0.29884,3351.9,3351.8,0.29883]
[1735678117271,0.29885,3351.8,3351.7,0.29884]
[1735678117562,0.29887,3351.5,3351.4,0.29886]
[1735678118063,0.74707,3351.9,3351.3,1.227]
[1735678118272,0.29886,3351.6,3351.5,0.29885]
[1735678121771,0.74707,3351.9,3351.3,0.29887]
[1735678121772,0.29888,3351.4,3351.3,0.29887]
[1735678123372,0.74338,3351.4,3351.3,0.29887]
[1735678125871,0.29888,3351.3,3351.2,0.4337]
[1735678126078,0.74721,3351.3,3350.9,4.66354129]
[1735678126265,0.29891,3351.0,3350.9,4.96245129]
[1735678127774,0.29891,3351.0,3350.9,0.29891]
[1735678129475,3.2078,3351.2,3351.1,0.2989]
[1735678129670,2.61913181,3351.3,3351.2,0.29889]
[1735678130067,2.32025181,3351.3,3351.2,0.29889]
[1735678130479,2.32025181,3351.3,3351.2,1.16509]
[1735678131581,3.2078,3351.7,3351.6,0.29885]
[1735678131775,3.2078,3351.7,3351.6,2.10304355]
[1735678131978,2.32025181,3351.9,3351.8,0.29883]
[1735678132482,0.72212,3352.0,3351.6,1.80419355]
[1735678132683,0.72212,3352.0,3351.9,0.29883]
[1735678133984,0.4233,3352.0,3351.6,1.80419355]
[1735678134286,0.29883,3351.9,3351.8,0.29883]
[1735678134983,0.72212,3352.0,3351.9,0.29883]
[1735678136886,3.49038579,3352.3,3351.9,6.80419355]
[1735678137084,3.49038579,3352.3,3352.2,2.10299355]
[1735678138192,3.49038579,3352.3,3352.2,1.80419355]
[1735678138393,4.64976416,3352.5,3352.1,4.66354129]
[1735678138394,0.9245,3352.5,3352.1,4.66354129]
[1735678138596,0.29879,3352.4,3352.3,0.29879]
[1735678139100,0.29879,3352.3,3352.2,2.10299355]
[1735678141092,0.29882,3352.3,3352.2,2.10302355]
[1735678141297,0.29882,3352.3,3352.2,0.29883]
[1735678141498,0.29884,3352.2,3352.1,0.29883]
[1735678141697,0.9245,3352.5,3352.0,0.4367]
[1735678141897,0.29884,3352.1,3352.0,0.73554]
[1735678142198,0.9245,3352.5,3352.0,0.4367]
[1735678142395,0.29882,3352.3,3352.2,1.80419355]
[1735678143100,0.29885,3352.0,3351.9,1.80419355]
[1735678143297,0.29887,3351.7,3351.6,6.46773484]
[1735678143503,0.29887,3351.7,3351.6,4.66354129]
[1735678144004,2.10306355,3351.7,3351.6,1.70574129]
[1735678144198,0.29888,3351.6,3351.5,7.0362044]
[1735678145099,0.29894,3351.0,3350.9,0.29894]
[1735678146605,0.29891,3351.3,3350.9,3.2078]
[1735678146804,3.78929579,3351.3,3351.2,1.80419355]
[1735678147001,3.49038579,3351.3,3351.2,1.80419355]
[1735678147297,3.49038579,3351.3,3351.2,3.32311355]
[1735678147504,2.79108579,3351.3,3351.2,3.32311355]
[1735678147701,0.09108579,3351.3,3351.2,3.32311355]
[1735678147904,4.94861416,3352.0,3351.3,0.74728]
[1735678148200,4.94861416,3352.0,3351.9,0.29886]
[1735678148905,0.29887,3351.8,3351.7,0.29887]
[1735678149804,0.29886,3351.9,3351.8,0.29886]
[1735678150307,0.29887,3351.8,3351.7,0.29887]
[1735678150603,4.64976416,3352.1,3351.6,1.80419355]
[1735678150801,0.29886,3351.9,3351.8,0.29885]
[1735678151203,4.64976416,3352.1,3351.6,1.80419355]
[1735678151403,0.29886,3352.0,3351.9,0.29885]
[1735678151901,0.29887,3351.9,3351.8,0.29886]
[1735678153504,4.64976416,3352.1,3352.0,0.29885]
[1735678154008,0.29881,3352.4,3352.1,0.29884]
[1735678154009,4.64976416,3352.2,3352.1,0.29884]
[1735678154205,4.64976416,3352.2,3352.1,2.10303355]
[1735678154608,4.64976416,3352.2,3352.1,0.29884]
[1735678154609,4.94859416,3352.2,3352.1,0.29884]
[1735678155309,4.94859416,3352.2,3352.0,1.51885]
[1735678155310,0.29884,3352.1,3352.0,1.51885]
[1735678155811,0.29881,3352.5,3352.4,0.2988]
[1735678156102,0.29884,3352.2,3352.1,0.29883]
[1735678157210,0.29881,3352.4,3352.3,0.29881]
[1735678157506,0.44847087,3352.5,3352.2,0.29882]
[1735678157507,0.29883,3352.3,3352.2,0.29882]
[1735678157712,0.44847087,3352.5,3352.4,0.29881]
[1735678158011,3.2078,3352.6,3352.1,1.80419355]
[1735678158212,3.2078,3352.6,3352.5,0.2988]
[1735678159003,3.2078,3352.6,3352.2,0.4451]
[1735678159209,0.29885,3352.0,3351.9,0.75535]
[1735678159410,0.29885,3352.0,3351.9,0.29885]
[1735678159805,0.29885,3352.0,3351.9,7.3350544]
[1735678160508,0.29884,3352.2,3352.1,0.29883]
[1735678160709,0.8665,3352.5,3351.9,7.0362044]
[1735678160912,0.29884,3352.1,3352.0,0.29884]
[1735678161210,0.8665,3352.5,3352.1,0.29883]
[1735678161211,0.29883,3352.2,3352.1,0.29883]
[1735678161710,0.29884,3352.1,3352.0,0.29884]
[1735678163707,4.64976416,3352.4,3351.6,2.4123]
[1735678163708,0.29883,3352.3,3352.2,0.29882]
[1735678163908,4.64976416,3352.4,3352.3,0.29882]
[1735678164810,4.64976416,3352.4,3352.3,0.72862]
[1735678165514,5.80504416,3352.8,3352.7,0.29878]
[1735678165811,4.64976416,3352.8,3352.7,0.29878]
[1735678166712,0.29876,3353.0,3352.5,0.44]
[1735678166908,9.04221416,3353.1,3353.0,0.29876]
[1735678167106,4.64976416,3353.1,3353.0,0.29876]
[1735678167306,4.64976416,3353.1,3353.0,2.10295355]
[1735678168612,6.1109452,3353.3,3353.0,1.80419355]
[1735678168613,0.29874,3353.3,3353.0,1.80419355]
[1735678168804,0.29874,3353.3,3353.2,0.29874]
[1735678169408,0.29876,3353.1,3353.0,0.29875]
[1735678171312,0.29878,3352.9,3352.8,0.29877]
[1735678171511,0.29878,3352.8,3352.7,0.29878]
[1735678171709,0.29877,3352.9,3352.8,0.29876]
[1735678172014,0.74685,3353.3,3352.6,3.2078]
[1735678172312,0.29877,3352.9,3352.8,0.29876]
[1735678172912,0.74688,3353.1,3352.3,0.4298]
[1735678173117,4.1297,3352.8,3351.9,7.0362044]
[1735678173309,4.1297,3352.8,3352.0,0.29884]
[1735678173310,0.29885,3352.1,3352.0,0.29884]
[1735678173713,0.29883,3352.3,3352.2,0.29882]
[1735678173910,0.74697,3352.7,3351.9,7.0362044]
[1735678174215,0.29885,3352.0,3351.9,7.0362044]
[1735678174410,0.29885,3352.0,3351.9,7.3350644]
[1735678174910,0.29885,3352.0,3351.9,0.29886]
[1735678175621,0.29885,3352.1,3352.0,0.29884]
[1735678177115,0.29885,3352.0,3351.9,0.29885]
[1735678178327,3.50663,3352.2,3352.1,0.29884]
[1735678178911,3.2078,3352.2,3352.1,0.29884]
[1735678179111,3.2078,3352.2,3352.1,2.10303355]
[1735678179316,0.2988,3352.6,3352.5,0.29879]
[1735678179517,4.64976416,3352.7,3352.2,4.39828]
[1735678179814,0.29879,3352.7,3352.6,0.29879]
[1735678180116,4.94853416,3352.9,3352.8,0.29878]
[1735678181308,0.29877,3352.9,3352.8,0.29878]
[1735678188528,3.2078,3353.1,3353.0,0.29876]
[1735678188727,3.2078,3353.1,3353.0,2.10295355]
[1735678189726,0.29874,3353.2,3353.1,0.29875]
[1735678189922,0.29874,3353.2,3353.1,0.76305]
[1735678190435,4.64976416,3353.3,3353.1,0.4643]
[1735678190723,5.53516416,3353.7,3353.2,0.4421]
[1735678190932,4.64976416,3353.7,3353.6,2.10289355]
[1735678192431,4.64976416,3353.7,3353.6,6.52769355]
[1735678192633,12.09145728,3354.5,3353.9,0.29867]
[1735678192634,0.29868,3354.0,3353.9,0.29867]
[1735678193028,0.29866,3354.1,3354.0,0.29866]
[1735678193528,0.29866,3354.1,3354.0,0.74866]
[1735678194636,3.2078,3354.5,3353.6,3.2078]
[1735678194833,3.2078,3354.0,3353.4,0.4641]
[1735678195126,0.8507,3353.9,3353.5,0.29871]
[1735678195322,0.29869,3353.8,3353.7,0.29869]
[1735678195524,3.2078,3354.0,3353.5,1.80419355]
[1735678195732,0.4284,3354.2,3353.8,1.80419355]
[1735678195934,0.29866,3354.1,3354.0,0.29866]
[1735678196432,3.50644,3354.4,3354.3,0.29864]
[1735678199534,0.29865,3354.3,3354.2,0.29864]
[1735678199837,3.2078,3354.4,3354.0,0.4454]
[1735678200127,3.65599767,3354.4,3354.0,0.4454]
[1735678200327,1.80419355,3354.1,3352.5,10.2440044]
[1735678200523,0.29877,3353.0,3352.9,0.29877]
[1735678200728,3.95456,3353.7,3352.8,3.11479355]
[1735678200928,0.29875,3353.2,3353.1,0.29874]
[1735678201135,0.74677,3353.6,3353.1,0.29875]
[1735678201335,0.74677,3353.6,3353.2,0.29874]
[1735678201336,0.29874,3353.3,3353.2,0.29874]
[1735678201734,4.64976416,3353.6,3352.9,0.74692]
[1735678201939,0.29872,3353.5,3353.4,0.29872]
[1735678202135,4.64976416,3353.6,3352.9,1.211]
[1735678202342,0.29876,3353.0,3352.9,0.29876]
[1735678202642,3.2078,3353.2,3352.7,0.29878]
[1735678202643,0.29878,3352.8,3352.7,0.29878]
[1735678203231,3.50658,3352.8,3352.7,0.29878]
[1735678203435,3.2078,3352.8,3351.6,3.47502355]
[1735678203744,3.2078,3352.2,3352.0,0.4563]
[1735678203941,0.29884,3352.1,3352.0,0.4563]
[1735678204342,3.2078,3352.2,3351.7,0.877]
[1735678204738,0.29885,3352.0,3351.9,0.29885]
[1735678204934,3.2078,3352.2,3351.7,0.877]
[1735678205135,0.29884,3352.1,3352.0,0.29884]
[1735678205632,3.2078,3352.2,3351.7,0.877]
[1735678205633,3.2078,3352.2,3352.1,0.29884]
[1735678206144,3.2078,3352.2,3351.7,0.877]
[1735678206334,3.2078,3352.2,3351.6,2.12713]
[1735678206335,0.29887,3351.7,3351.6,1.67083]
[1735678206540,2.10306355,3351.7,3351.6,1.67083]
[1735678207136,5.31086355,3351.7,3351.6,1.67083]
[1735678208945,11.8161871,3351.7,3350.7,0.4553]
[1735678209135,5.31094355,3350.8,3350.7,0.4553]
[1735678209334,5.31094355,3350.8,3350.5,0.29898]
[1735678209538,5.31095355,3350.8,3350.5,0.29898]
[1735678209943,5.01199355,3350.8,3350.1,0.4306]
[1735678210245,1.80419355,3350.5,3350.1,0.4306]
[1735678210437,1.80419355,3350.5,3350.4,0.29899]
[1735678210646,5.31095355,3350.8,3350.6,0.29897]
[1735678210844,3.2078,3350.8,3350.7,0.29896]
[1735678211051,3.2078,3351.3,3350.5,3.2078]
[1735678211342,3.2078,3351.3,3351.2,0.29892]
[1735678212434,3.50671,3351.3,3351.0,1.17313]
[1735678212639,3.2078,3351.3,3351.0,0.8742]
[1735678212844,3.50671,3351.3,3351.1,0.29893]
[1735678213048,0.29892,3351.2,3351.0,1.17313]
[1735678213346,3.2078,3351.3,3351.0,0.8742]
[1735678213347,0.29893,3351.1,3351.0,0.8742]
[1735678213746,3.2078,3351.3,3351.0,0.8742]
[1735678214045,3.2078,3351.3,3351.0,1.17313]
[1735678214238,3.2078,3351.3,3351.2,0.29892]
[1735678215646,3.2078,3351.3,3351.1,0.29893]
[1735678215850,3.2078,3351.3,3351.2,0.29892]
[1735678217043,0.29888,3351.6,3351.4,0.29889]
[1735678217345,0.29888,3351.6,3351.1,0.29893]
[1735678217552,0.29888,3351.6,3351.4,0.2989]
[1735678218049,3.2078,3351.7,3351.1,0.29893]
[1735678218250,3.2078,3351.7,3351.0,0.8742]
[1735678218251,0.2989,3351.4,3351.3,0.29891]
[1735678218447,0.2989,3351.5,3351.3,0.29891]
[1735678218648,0.2989,3351.5,3351.4,0.2989]
[1735678218844,3.2078,3351.7,3351.0,0.8742]
[1735678219046,0.29893,3351.1,3351.0,0.8742]
[1735678219645,3.2078,3351.2,3351.0,0.8742]
[1735678219855,3.2078,3351.2,3351.1,0.29893]
[1735678220356,3.50672,3351.2,3351.1,0.29893]
[1735678220853,0.29893,3351.1,3351.0,0.73083]
[1735678221049,3.2078,3351.2,3351.0,0.4319]
[1735678221355,3.2078,3351.2,3351.1,0.29893]
[1735678221551,3.50672,3351.2,3351.1,0.29893]
[1735678221752,3.2078,3351.2,3351.1,0.29893]
[1735678221957,3.2078,3351.2,3351.0,0.4319]
[1735678222256,3.50672,3351.2,3351.1,0.29893]
[1735678223053,3.2078,3351.2,3351.0,0.4319]
[1735678223247,0.29893,3351.1,3351.0,0.73083]
[1735678223452,3.2078,3351.2,3351.0,0.4319]
[1735678223754,0.29894,3351.1,3350.9,0.29894]
[1735678223955,3.2078,3351.2,3350.8,0.4335]
[1735678224146,0.29894,3350.9,3350.8,0.73245]
[1735678224346,0.29894,3350.9,3350.8,0.4335]
[1735678224543,0.29894,3350.9,3350.8,0.73245]
[1735678224957,3.2078,3351.2,3350.8,0.4335]
[1735678225155,3.2078,3351.2,3351.1,0.29893]
[1735678225552,0.2989,3351.4,3351.3,0.29891]
[1735678225854,3.2078,3352.1,3351.3,3.2078]
[1735678226055,3.2078,3352.1,3352.0,0.29885]
[1735678226348,3.50664,3352.1,3352.0,0.29885]
[1735678226750,3.49361841,3352.2,3351.7,0.4335]
[1735678226751,3.49361841,3352.2,3351.7,3.6413]
[1735678226956,3.49361841,3352.2,3352.1,0.29884]
[1735678227551,3.2078,3352.6,3352.5,0.2988]
[1735678227750,3.50659,3352.6,3352.5,0.2988]
[1735678228551,3.2078,3352.6,3351.7,0.4335]
[1735678228754,0.4317,3352.5,3351.7,0.4335]
[1735678228951,3.2078,3352.2,3352.0,0.29885]
[1735678229151,0.29884,3352.1,3352.0,0.29885]
[1735678229349,3.2078,3352.2,3351.9,0.29885]
[1735678229350,0.29885,3352.0,3351.9,0.29885]
[1735678229655,0.29884,3352.1,3352.0,0.29884]
[1735678230051,3.2078,3352.2,3352.1,0.29884]
[1735678231145,3.50658,3352.8,3351.7,3.6413]
[1735678231351,3.50658,3352.8,3352.7,0.29878]
[1735678232353,3.50658,3352.8,3352.4,0.4234]
[1735678232354,0.2988,3352.6,3352.5,0.2988]
[1735678233157,0.29879,3352.7,3352.6,0.29879]
[1735678233361,0.2988,3352.6,3352.5,0.2988]
[1735678236255,0.2988,3352.5,3352.4,0.7222]
[1735678236954,5.01683841,3352.8,3352.4,0.4234]
[1735678237153,0.2988,3352.6,3352.5,0.2988]
[1735678239150,5.01683841,3352.8,3352.4,0.4234]
[1735678239365,3.2078,3353.3,3352.5,3.2078]
[1735678239552,3.2078,3353.3,3353.2,0.29874]
[1735678240561,3.50653,3353.3,3353.2,0.29874]
[1735678241157,0.29874,3353.2,3353.1,0.4567]
[1735678241360,0.29876,3353.0,3352.9,0.29876]
[1735678241856,5.01683841,3353.3,3352.8,1.218]
[1735678242061,3.50654,3353.3,3353.2,0.29874]
[1735678244056,3.2078,3353.3,3352.8,1.218]
[1735678244460,3.2078,3353.3,3353.2,0.29874]
[1735678244461,3.50654,3353.3,3353.2,0.29874]
[1735678244667,5.53600755,3353.3,3352.6,0.4567]
[1735678244955,0.29878,3352.7,3352.6,0.75549]
[1735678245160,3.50658,3352.8,3352.7,0.29878]
[1735678245565,3.2078,3352.8,3352.6,0.4567]
[1735678245855,0.29878,3352.7,3352.6,0.75549]
[1735678246358,3.50658,3352.8,3352.7,0.29878]
[1735678246759,3.2078,3352.8,3352.7,0.29878]
[1735678248166,3.2078,3352.8,3352.7,0.74298]
[1735678249161,0.29877,3352.9,3352.7,0.4442]
[1735678249363,0.29877,3352.9,3352.8,0.29878]
[1735678250361,6.28285755,3353.3,3352.6,0.4567]
[1735678250561,0.29878,3352.7,3352.6,0.75549]
[1735678250762,3.2078,3352.9,3352.6,0.4567]
[1735678250969,0.29878,3352.8,3352.7,0.29878]
[1735678251261,3.2078,3352.9,3352.6,0.4567]
[1735678251467,0.29878,3352.7,3352.6,0.75549]
[1735678252260,0.29878,3352.7,3352.6,0.4567]
[1735678252465,5.53600755,3352.9,3351.6,0.74719]
[1735678252769,0.29886,3351.8,3351.7,0.72757]
[1735678253667,0.4565,3352.4,3351.7,0.4287]
[1735678253863,0.4565,3352.4,3352.1,0.29882]
[1735678253864,0.29883,3352.2,3352.1,0.29882]
[1735678254062,3.95011841,3352.4,3351.8,0.74715]
[1735678254366,3.79242841,3352.4,3352.3,0.29882]
[1735678254563,3.49361841,3352.4,3352.3,0.29882]
[1735678254770,0.29881,3352.4,3352.3,0.29882]
[1735678254970,3.50661,3352.5,3352.4,0.29881]
[1735678255769,3.2078,3352.5,3352.4,0.29881]
[1735678256169,3.5066,3352.5,3352.4,0.29881]
[1735678256367,3.2078,3352.5,3352.4,0.29881]
[1735678256663,3.2078,3352.5,3352.1,1.67639]
[1735678256664,0.29883,3352.3,3352.2,0.29882]
[1735678258468,0.29883,3352.2,3352.1,1.22813]
[1735678258669,0.29883,3352.2,3352.1,0.4633]
[1735678258863,3.95483,3352.5,3351.7,0.72757]
[1735678258864,0.8077,3352.4,3351.7,0.72757]
[1735678259063,0.29886,3351.8,3351.7,0.72757]
[1735678259969,0.29886,3351.9,3351.8,0.29885]
[1735678260270,3.95491,3352.1,3351.6,0.4419]
[1735678260467,0.29887,3351.7,3351.6,0.74078]
[1735678260671,3.2078,3352.1,3351.9,0.29885]
[1735678260968,3.50664,3352.1,3352.0,0.29885]
[1735678261277,0.29886,3351.9,3351.8,0.29886]
[1735678261768,3.50665,3352.1,3352.0,0.29885]
[1735678262172,3.2078,3352.1,3352.0,0.29885]
[1735678262568,2.32896607,3352.2,3351.8,3.2078]
[1735678262772,1.62986607,3352.2,3352.1,0.29884]
[1735678263076,1.62986607,3352.2,3352.0,1.80889398]
[1735678263077,3.5066,3352.6,3352.5,0.2988]
[1735678263267,3.5066,3352.6,3352.4,0.2988]
[1735678263268,0.29881,3352.5,3352.4,0.2988]
[1735678263463,3.5066,3352.6,3352.5,0.2988]
[1735678264269,3.5066,3352.6,3352.3,0.29881]
[1735678264270,0.29882,3352.4,3352.3,0.29881]
[1735678264476,0.29883,3352.3,3352.2,0.29882]
[1735678265072,0.29882,3352.4,3352.3,0.29881]
[1735678265275,0.29881,3352.5,3352.4,0.2988]
[1735678265476,3.2078,3352.6,3352.0,1.80889398]
[1735678265672,3.2078,3352.6,3352.5,0.2988]
[1735678266175,3.49361841,3353.0,3352.9,0.29877]
[1735678266376,3.49361841,3353.0,3352.5,0.2988]
[1735678266566,3.79237841,3353.0,3352.6,0.74699]
[1735678266768,3.79237841,3353.0,3352.9,0.29877]
[1735678267173,0.29876,3353.0,3352.9,0.29877]
[1735678267573,3.79236841,3353.3,3353.2,0.29874]
[1735678267778,0.29877,3353.0,3352.9,0.29876]
[1735678268078,3.49361841,3353.3,3352.7,0.4262]
[1735678268278,3.79234841,3353.3,3353.2,0.29874]
[1735678268474,0.29875,3353.2,3353.1,0.29874]
[1735678268778,0.29877,3353.0,3352.9,0.29876]
[1735678268977,1.80889398,3353.3,3352.7,0.4262]
[1735678269172,0.29878,3352.8,3352.7,0.29877]
[1735678269574,0.74686,3353.2,3352.6,3.2078]
[1735678269775,0.29878,3352.9,3352.8,0.29877]
[1735678269976,5.01669398,3353.0,3352.3,0.4429]
[1735678270177,0.29881,3352.4,3352.3,0.74172]
[1735678270373,0.29881,3352.4,3352.3,0.4429]
[1735678270580,0.29882,3352.3,3352.2,4.98288386]
[1735678270978,0.29881,3352.5,3352.4,0.2988]
[1735678271482,3.2078,3352.6,3352.2,4.68406386]
[1735678271682,0.29882,3352.3,3352.2,4.98289386]
[1735678271882,0.29882,3352.3,3352.2,0.29883]
[1735678272280,3.5066,3352.6,3352.5,0.2988]
[1735678272480,0.29881,3352.5,3352.4,0.2988]
[1735678273484,0.29881,3352.5,3352.1,0.74709]
[1735678273485,7.00021841,3352.6,3352.5,0.2988]
[1735678273975,6.70141841,3352.6,3352.5,0.2988]
[1735678274378,3.49361841,3352.6,3352.5,0.2988]
[1735678275484,3.2078,3352.6,3352.2,4.68406386]
[1735678275985,0.29882,3352.3,3352.2,4.68406386]
[1735678276688,7.00021841,3352.6,3352.5,0.2988]
[1735678277385,3.49361841,3352.6,3352.5,0.2988]
[1735678278093,0.44845248,3352.6,3352.5,0.2988]
[1735678278387,4.64976416,3352.7,3352.5,0.2988]
[1735678278388,4.64976416,3352.7,3352.6,0.29879]
[1735678278688,4.64976416,3352.7,3352.6,0.75099]
[1735678278689,3.08976416,3352.7,3352.6,0.75099]
[1735678280015,3.2078,3353.4,3353.2,0.29873]
[1735678280016,0.29873,3353.3,3353.2,0.29873]
[1735678280210,6.71087988,3353.4,3352.8,0.74693]
[1735678280512,6.71087988,3353.4,3352.6,7.4884044]
[1735678280513,0.29877,3353.0,3352.9,0.29876]
[1735678280888,6.71087988,3353.4,3352.6,7.4884044]
[1735678281086,0.29876,3353.1,3353.0,0.29875]
[1735678281883,6.71087988,3353.4,3352.9,3.2078]
[1735678282089,0.29874,3353.3,3353.2,0.29873]
[1735678282788,0.29875,3353.2,3353.1,0.29874]
[1735678282982,6.71087988,3353.4,3353.0,0.464]
[1735678282983,0.29875,3353.1,3353.0,0.464]
[1735678283487,0.29878,3352.8,3352.7,4.69265981]
[1735678283801,6.71087988,3353.4,3352.6,4.69265981]
[1735678283802,4.5209,3353.0,3352.6,4.69265981]
[1735678284023,0.29878,3352.7,3352.6,4.69265981]
[1735678285208,3.50307988,3352.8,3352.4,0.29881]
[1735678285503,0.2988,3352.5,3352.4,0.29881]
[1735678286622,3.50307988,3352.8,3352.7,0.29878]
[1735678286822,3.80185988,3352.8,3352.7,0.29878]
[1735678287517,0.29878,3352.8,3352.7,0.29878]
[1735678287917,0.2988,3352.5,3352.4,0.29881]
[1735678288405,0.29881,3352.4,3352.3,4.99147981]
[1735678288899,0.29881,3352.4,3352.3,0.29882]
[1735678290292,0.29882,3352.3,3352.2,0.76282]
[1735678290919,1.17988,3352.7,3352.3,0.29881]
[1735678290920,0.29882,3352.4,3352.3,0.29881]
[1735678291323,0.29882,3352.3,3352.2,0.76282]
[1735678291489,4.68295988,3352.7,3352.1,1.668]
[1735678291490,3.2078,3352.6,3352.1,1.668]
[1735678291692,0.29883,3352.2,3352.1,1.96683]
[1735678291891,0.29883,3352.3,3352.2,0.29882]
[1735678292088,3.2078,3352.6,3352.0,4.69265981]